bitfinex-derivatives/quotes_SOLF0:USTF0_20250409
["timestamp","ask_amount","ask_price","bid_price","bid_amount"]
[1744213113369,46.24,106.64,106.58,15.18917914]
[1744213113569,46.24,106.64,106.58,61.42917914]
[1744213113763,0.07000612,106.62,106.6,0.06267448]
[1744213113957,46.24,106.64,106.6,0.06267448]
[1744213114159,19.59097914,106.67,106.6,0.06267448]
[1744213114361,4.4018,106.67,106.6,15.25185362]
[1744213114565,46.24,106.68,106.6,15.18917914]
[1744213114765,46.24,106.68,106.61,4.4214]
[1744213114978,9.3842,106.66,106.63,9.3859]
[1744213115273,9.45085617,106.66,106.63,9.44866064]
[1744213115570,9.3847,106.65,106.63,9.44866064]
[1744213116565,9.3847,106.65,106.63,0.06276064]
[1744213116767,9.3855,106.64,106.63,0.06276064]
[1744213122577,0.06665617,106.66,106.63,0.06276064]
[1744213122876,9.45115617,106.66,106.63,9.44836064]
[1744213123077,9.45115617,106.66,106.63,0.06276064]
[1744213123672,9.45115617,106.66,106.64,9.3854]
[1744213124472,9.45115617,106.66,106.63,9.44866064]
[1744213125280,9.45115617,106.66,106.64,9.3854]
[1744213127078,0.06665617,106.66,106.63,0.06276064]
[1744213127787,9.3855,106.64,106.63,0.06276064]
[1744213136576,55.5053,106.65,106.63,0.06276064]
[1744213137287,9.45095617,106.66,106.63,0.06276064]
[1744213137487,0.06665617,106.66,106.63,9.44876064]
[1744213138089,9.3852,106.65,106.63,9.44876064]
[1744213138289,0.06665617,106.66,106.63,0.06276064]
[1744213138986,9.3852,106.65,106.63,9.44916064]
[1744213139190,9.3852,106.65,106.63,0.06276064]
[1744213139488,0.06665617,106.66,106.63,0.06276064]
[1744213140090,9.45055617,106.66,106.64,9.385]
[1744213140293,9.45055617,106.66,106.63,0.06276064]
[1744213140794,0.06665617,106.66,106.63,0.06276064]
[1744213141286,9.3855,106.65,106.63,0.06276064]
[1744213141785,9.3855,106.65,106.63,9.44886064]
[1744213142392,9.3855,106.65,106.63,0.06276064]
[1744213143188,9.3855,106.64,106.63,0.06276064]
[1744213143599,9.3852,106.65,106.63,9.44916064]
[1744213143892,9.3852,106.65,106.63,0.06276064]
[1744213144685,9.3855,106.64,106.63,0.06276064]
[1744213145788,0.06665617,106.66,106.63,0.06276064]
[1744213145985,0.06665617,106.66,106.64,9.3852]
[1744213146204,15.21084369,106.65,106.63,0.06276064]
[1744213146392,9.3899,106.6,106.58,4.3788]
[1744213146589,15.21084369,106.63,106.58,4.3788]
[1744213146907,50.5228,106.64,106.56,8.9718]
[1744213147084,15.21084369,106.59,106.55,4.3788]
[1744213147285,61.23084369,106.59,106.55,4.3788]
[1744213147493,0.07156848,106.58,106.56,0.0644488]
[1744213147698,15.21084369,106.57,106.56,0.0644488]
[1744213147881,24.60254369,106.57,106.56,0.0644488]
[1744213148584,9.3944,106.54,106.53,101.62034984]
[1744213148985,76.44168738,106.55,106.52,86.12138068]
[1744213149197,24.60604369,106.53,106.52,23.54958068]
[1744213149396,24.60604369,106.53,106.52,6.66458068]
[1744213149597,24.60604369,106.53,106.52,8.068e-05]
[1744213149794,9.3961,106.52,106.51,242.27840163]
[1744213149995,46.02,106.52,106.5,230.26221259]
[1744213150308,15.21084369,106.51,106.5,86.9745882]
[1744213150599,9.4003,106.48,106.45,6.03651178]
[1744213150794,55.4203,106.48,106.45,6.03651178]
[1744213151295,55.49011139,106.48,106.45,6.10295692]
[1744213151796,46.08981139,106.48,106.45,15.50515692]
[1744213152000,46.08981139,106.48,106.45,6.10295692]
[1744213152699,46.08981139,106.48,106.46,9.4009]
[1744213152998,46.08981139,106.48,106.45,21.31380061]
[1744213153309,743.62,106.59,106.47,15.21084369]
[1744213153489,35.14286298,106.49,106.47,362.0]
[1744213153691,242.59550186,106.51,106.48,61.25084369]
[1744213153889,221.26310186,106.51,106.5,9.3979]
[1744213154497,221.26310186,106.51,106.49,0.0631794]
[1744213154794,206.99090186,106.51,106.49,24.45008851]
[1744213155096,110.78360479,106.51,106.5,9.3979]
[1744213155401,103.67920479,106.51,106.5,9.3979]
[1744213155600,68.85200479,106.51,106.5,18.7779]
[1744213155797,20.97600479,106.51,106.5,9.3979]
[1744213156003,6.63010479,106.51,106.5,9.3979]
[1744213156204,0.06336551,106.52,106.5,33.76690911]
[1744213156390,0.06336551,106.52,106.5,24.38690911]
[1744213156791,0.06336551,106.52,106.51,9.397]
[1744213157400,0.06336551,106.52,106.5,24.38690911]
[1744213157900,0.06336551,106.52,106.51,9.397]
[1744213158305,0.06336551,106.52,106.5,33.78440911]
[1744213158493,0.06336551,106.52,106.49,0.0631794]
[1744213158801,9.45986551,106.52,106.49,0.0631794]
[1744213159099,9.45986551,106.52,106.49,9.4615794]
[1744213159502,9.397,106.51,106.49,9.4615794]
[1744213159802,9.397,106.51,106.49,0.0631794]
[1744213159997,9.3979,106.5,106.49,0.0631794]
[1744213160199,0.06336551,106.52,106.49,0.0631794]
[1744213160404,0.06336551,106.52,106.49,9.4615794]
[1744213160606,9.3971,106.51,106.49,0.0631794]
[1744213161104,0.06336551,106.52,106.49,0.0631794]
[1744213162907,0.06336551,106.52,106.49,70.51008851]
[1744213163795,0.06336551,106.52,106.51,9.397]
[1744213167702,0.06336551,106.52,106.5,9.3975]
[1744213167909,0.06336551,106.52,106.49,0.0631794]
[1744213169108,0.06336551,106.52,106.51,9.397]
[1744213171308,6.551e-05,106.52,106.51,9.397]
[1744213174313,6.551e-05,106.52,106.51,33.78390911]
[1744213175512,6.551e-05,106.52,106.51,24.63356105]
[1744213175718,6.551e-05,106.52,106.51,9.397]
[1744213176213,6.551e-05,106.52,106.49,0.0631794]
[1744213176610,9.3977,106.51,106.49,0.0631794]
[1744213176815,6.551e-05,106.52,106.49,0.0631794]
[1744213177322,9.3975,106.51,106.49,0.0631794]
[1744213177919,9.39666551,106.52,106.49,0.0631794]
[1744213178522,9.39666551,106.52,106.49,9.4613794]
[1744213178827,15.23656105,106.51,106.45,3.12852147]
[1744213179021,15.23656105,106.47,106.42,105.70549374]
[1744213179225,9.4028,106.45,106.42,105.70549374]
[1744213179532,15.23656105,106.47,106.42,105.70549374]
[1744213179533,45.98,106.48,106.44,15.23656105]
[1744213179835,9.4018,106.46,106.42,3.91949021]
[1744213180124,15.23656105,106.46,106.45,3.083e-05]
[1744213180322,24.63796105,106.46,106.45,3.083e-05]
[1744213181323,18.8014,106.46,106.45,3.083e-05]
[1744213181726,18.8014,106.46,106.42,3.91949021]
[1744213181727,9.4041,106.43,106.42,3.91949021]
[1744213182028,45.98,106.44,106.41,89.77640354]
[1744213182220,9.4049,106.42,106.41,89.77640354]
[1744213182422,45.98,106.44,106.4,2.14234874]
[1744213182721,9.4058,106.41,106.4,2.14234874]
[1744213183122,0.06211044,106.43,106.4,2.14234874]
[1744213183530,9.4056,106.42,106.4,2.14234874]
[1744213184229,9.46661044,106.43,106.4,2.14234874]
[1744213184431,0.06211044,106.43,106.4,2.14234874]
[1744213184924,0.06211044,106.43,106.41,9.4053]
[1744213187426,0.06211044,106.43,106.42,9.4049]
[1744213187726,0.06211044,106.43,106.4,2.14234874]
[1744213187920,0.06211044,106.43,106.41,0.06591738]
[1744213188120,0.06211044,106.43,106.41,9.47131738]
[1744213188932,0.06211044,106.43,106.41,0.06591738]
[1744213190028,0.06211044,106.43,106.41,9.47131738]
[1744213190529,0.06211044,106.43,106.42,9.4049]
[1744213192837,9.4001,106.48,106.45,9.4018]
[1744213193233,46.0,106.48,106.4,2.14234874]
[1744213193430,9.4028,106.45,106.4,2.14234874]
[1744213193735,9.4028,106.45,106.42,9.4045]
[1744213193931,9.4019,106.46,106.4,2.14234874]
[1744213194138,0.0646804,106.45,106.42,0.06408089]
[1744213194337,0.0646804,106.45,106.44,9.4032]
[1744213196843,0.0646804,106.45,106.42,0.06408089]
[1744213197136,0.0646804,106.45,106.43,9.4036]
[1744213197438,0.0646804,106.45,106.44,9.4032]
[1744213199842,9.4670804,106.45,106.42,0.06408089]
[1744213200024,46.0646804,106.45,106.42,0.06408089]
[1744213200227,9.0825,106.44,106.42,0.06408089]
[1744213200428,9.0825,106.44,106.4,2.14234874]
[1744213201130,9.4058,106.41,106.4,2.14234874]
[1744213202434,0.06054015,106.42,106.4,2.14234874]
[1744213202638,0.06054015,106.42,106.4,11.54864874]
[1744213203144,0.06054015,106.42,106.41,9.4058]
[1744213204131,4.015e-05,106.42,106.41,9.4058]
[1744213204334,9.0949,106.47,106.41,24.43807348]
[1744213204641,46.02,106.48,106.41,24.43807348]
[1744213204844,55.1149,106.51,106.46,9.401]
[1744213205045,55.1149,106.51,106.43,70.43807348]
[1744213205243,55.1149,106.51,106.41,33.43727348]
[1744213205441,0.06094367,106.48,106.46,0.07173098]
[1744213205642,9.46114367,106.48,106.46,0.07173098]
[1744213206340,9.46114367,106.48,106.46,9.47283098]
[1744213207143,0.06094367,106.48,106.47,9.4005]
[1744213210734,4.367e-05,106.48,106.47,9.4005]
[1744213211238,4.367e-05,106.48,106.47,79.77857348]
[1744213211442,8.6325,106.56,106.53,9.395]
[1744213211851,18.0256,106.56,106.53,9.395]
[1744213212052,8.6325,106.56,106.53,9.395]
[1744213212245,9.3936,106.55,106.53,9.395]
[1744213212446,9.45729113,106.55,106.53,9.4671372]
[1744213213156,0.06369113,106.55,106.53,9.4671372]
[1744213213451,0.06369113,106.55,106.53,0.0721372]
[1744213214071,0.06369113,106.55,106.54,9.3944]
[1744213214850,9.113e-05,106.55,106.54,9.3944]
[1744213215046,4.2873,106.6,106.54,9.38]
[1744213215246,45.92,106.61,106.55,24.43807348]
[1744213215247,9.3887,106.61,106.55,24.43807348]
[1744213215451,45.92,106.63,106.59,9.3899]
[1744213215650,45.92,106.63,106.56,45.92]
[1744213216041,9.44950858,106.61,106.58,9.4510845]
[1744213216764,9.3893,106.6,106.58,0.0606845]
[1744213217051,0.06080858,106.61,106.58,0.0606845]
[1744213217442,9.3899,106.59,106.58,0.0606845]
[1744213219872,9.3899,106.59,106.51,83.90847348]
[1744213219873,9.3939,106.55,106.51,83.90847348]
[1744213220470,9.3931,106.56,106.53,9.3949]
[1744213220967,9.3931,106.56,106.53,9.4584299]
[1744213221170,9.46000243,106.56,106.53,9.4584299]
[1744213221472,9.3944,106.54,106.53,0.0635299]
[1744213222571,9.3939,106.55,106.53,0.0635299]
[1744213222759,0.06690243,106.56,106.53,0.0635299]
[1744213223471,0.06690243,106.56,106.53,24.50160338]
[1744213223968,45.9,106.65,106.55,48.87614696]
[1744213224271,9.3877,106.62,106.59,9.3893]
[1744213224563,70.33807348,106.65,106.57,45.9]
[1744213224767,9.3868,106.63,106.6,9.3885]
[1744213224955,9.44670069,106.63,106.6,9.45180592]
[1744213225574,9.44670069,106.63,106.6,0.06330592]
[1744213225575,0.05990069,106.63,106.6,0.06330592]
[1744213226072,9.3882,106.61,106.6,0.06330592]
[1744213226262,0.05990069,106.63,106.6,0.06330592]
[1744213226760,9.3877,106.62,106.6,9.45200592]
[1744213227675,9.3882,106.61,106.6,0.06330592]
[1744213227863,0.05990069,106.63,106.6,0.06330592]
[1744213228168,9.3878,106.62,106.6,9.45230592]
[1744213229170,9.3882,106.61,106.6,0.06330592]
[1744213231174,0.05990069,106.63,106.6,0.06330592]
[1744213231774,9.3875,106.62,106.6,0.06330592]
[1744213232071,0.05990069,106.63,106.6,0.06330592]
[1744213232272,9.44670069,106.63,106.6,9.45170592]
[1744213232777,9.44670069,106.63,106.6,0.06330592]
[1744213233075,9.44670069,106.63,106.61,9.3881]
[1744213233283,9.44670069,106.63,106.6,0.06330592]
[1744213233578,9.3875,106.62,106.6,0.06330592]
[1744213233765,0.05990069,106.63,106.6,9.45190592]
[1744213233971,0.05990069,106.63,106.6,0.06330592]
[1744213234165,0.05990069,106.63,106.6,24.5013794]
[1744213234365,0.05990069,106.63,106.6,70.3813794]
[1744213237774,0.05990069,106.63,106.61,9.3877]
[1744213237975,0.05990069,106.63,106.6,70.3813794]
[1744213238279,0.05990069,106.63,106.62,9.3873]
[1744213241384,0.05990069,106.63,106.6,0.06330592]
[1744213241887,9.3877,106.62,106.6,9.45180592]
[1744213242586,0.05990069,106.63,106.61,9.3876]
[1744213243179,0.05990069,106.63,106.62,9.3873]
[1744213244484,9.44630069,106.63,106.61,9.3876]
[1744213245083,0.05990069,106.63,106.6,0.06330592]
[1744213245287,9.3873,106.62,106.6,9.45190592]
[1744213245488,0.05990069,106.63,106.6,0.06330592]
[1744213245683,9.3882,106.61,106.6,0.06330592]
[1744213254495,14.00410069,106.63,106.6,0.06330592]
[1744213254698,0.05990069,106.63,106.6,0.06330592]
[1744213255497,9.44660069,106.63,106.6,0.06330592]
[1744213256000,9.44660069,106.63,106.61,9.3879]
[1744213256899,0.05990069,106.63,106.6,0.06330592]
[1744213257499,9.44660069,106.63,106.61,9.3877]
[1744213257994,0.05990069,106.63,106.6,0.06330592]
[1744213259001,9.44700069,106.63,106.61,9.3881]
[1744213259905,9.3873,106.62,106.6,9.45180592]
[1744213260095,0.05990069,106.63,106.6,0.06330592]
[1744213260501,9.3876,106.62,106.6,9.45210592]
[1744213261404,9.3882,106.61,106.6,0.06330592]
[1744213263705,59.4792,106.62,106.6,0.06330592]
[1744213263912,50.0915,106.62,106.6,0.06330592]
[1744213264113,50.0915,106.62,106.6,9.45190592]
[1744213264306,0.05990069,106.63,106.6,0.06330592]
[1744213264904,9.3875,106.62,106.6,0.06330592]
[1744213265211,0.05990069,106.63,106.6,0.06330592]
[1744213265511,9.44670069,106.63,106.61,9.3881]
[1744213266313,45.78,106.62,106.6,0.06330592]
[1744213266702,9.3882,106.61,106.6,0.06330592]
[1744213267009,45.78,106.62,106.6,0.06330592]
[1744213267397,9.3882,106.61,106.6,0.06330592]
[1744213267607,0.05990069,106.63,106.6,0.06330592]
[1744213267914,9.3882,106.61,106.6,0.06330592]
[1744213268411,0.05990069,106.63,106.6,9.45190592]
[1744213268713,0.05990069,106.63,106.6,0.06330592]
[1744213269408,45.68,106.62,106.6,0.06330592]
[1744213269608,45.68,106.62,106.56,9.3922]
[1744213269812,4.4132,106.61,106.54,422.98324673]
[1744213270110,9.3913,106.58,106.54,407.68]
[1744213270408,4.5524,106.6,106.54,362.0]
[1744213270605,45.68,106.59,106.54,362.0]
[1744213270805,9.46313143,106.58,106.56,0.06051099]
[1744213271003,0.07183143,106.58,106.56,0.06051099]
[1744213271307,9.3917,106.57,106.56,0.06051099]
[1744213271610,0.07183143,106.58,106.53,102.65220632]
[1744213271802,24.41018002,106.58,106.51,172.53774737]
[1744213271997,24.33834859,106.54,106.51,172.53774737]
[1744213272313,9.3961,106.52,106.51,172.53774737]
[1744213273512,9.397,106.51,106.5,131.62957521]
[1744213274306,9.397,106.51,106.5,0.0693834]
[1744213274513,9.3981,106.5,106.41,41.78886219]
[1744213274711,54.6055,106.53,106.41,41.78886219]
[1744213274913,54.6055,106.53,106.42,1.63430155]
[1744213275415,9.3991,106.49,106.43,386.33834859]
[1744213275616,9.45981089,106.49,106.47,0.06171997]
[1744213275810,0.06071089,106.49,106.47,0.06171997]
[1744213276117,9.3996,106.48,106.47,0.06171997]
[1744213277518,9.45991089,106.49,106.47,0.06171997]
[1744213279111,9.3996,106.48,106.47,0.06171997]
[1744213279418,0.06071089,106.49,106.47,0.06171997]
[1744213279617,9.45991089,106.49,106.47,0.06171997]
[1744213280116,9.3996,106.48,106.47,0.06171997]
[1744213280810,9.46001089,106.49,106.47,0.06171997]
[1744213281716,9.3996,106.48,106.47,0.06171997]
[1744213283827,9.3996,106.48,106.43,362.0]
[1744213284035,45.72,106.47,106.4,2.14234874]
[1744213284331,24.33834859,106.46,106.4,2.14234874]
[1744213284532,24.33834859,106.44,106.4,2.14234874]
[1744213284731,45.72,106.43,106.4,2.14234874]
[1744213284957,9.4067,106.4,106.39,2.58657739]
[1744213286233,9.4076,106.39,106.38,2.82639593]
[1744213286934,9.4071,106.4,106.38,2.82639593]
[1744213287133,0.06969598,106.41,106.38,12.23419593]
[1744213287529,9.4076,106.39,106.38,2.82639593]
[1744213288228,24.33834859,106.39,106.37,1.08191327]
[1744213288436,45.74,106.4,106.37,1.08191327]
[1744213288826,50.1253,106.4,106.37,1.08191327]
[1744213289046,9.4085,106.38,106.37,1.327e-05]
[1744213289235,24.33834859,106.39,106.37,8.178e-05]
[1744213289449,24.33834859,106.39,106.35,2.89809032]
[1744213289743,74.46364859,106.4,106.35,12.30889032]
[1744213289944,74.46364859,106.4,106.35,2.89809032]
[1744213290135,9.409,106.38,106.35,12.30899032]
[1744213290337,50.1253,106.4,106.35,2.89809032]
[1744213290537,0.06812736,106.38,106.35,2.96052952]
[1744213291236,0.06812736,106.38,106.37,9.4094]
[1744213292946,0.06812736,106.38,106.36,22.8375]
[1744213293334,0.06812736,106.38,106.36,13.4274]
[1744213293945,0.06812736,106.38,106.36,22.8374]
[1744213294346,0.06812736,106.38,106.36,13.4274]
[1744213294530,0.06812736,106.38,106.36,22.8372]
[1744213297044,0.06812736,106.38,106.37,9.4094]
[1744213297242,45.76,106.4,106.36,13.4274]
[1744213297747,45.76,106.4,106.38,9.4081]
[1744213298143,45.76,106.4,106.36,13.4274]
[1744213298447,0.07199996,106.4,106.38,0.07072199]
[1744213299343,0.07199996,106.4,106.39,9.4076]
[1744213299943,45.68,106.43,106.4,9.4061]
[1744213300334,55.0846,106.43,106.4,9.4061]
[1744213300536,55.0846,106.43,106.36,83.44574859]
[1744213300537,45.68,106.43,106.41,9.4053]
[1744213300837,55.0845,106.43,106.41,9.4053]
[1744213301034,55.14758779,106.43,106.41,9.47639087]
[1744213301548,55.14758779,106.43,106.41,0.07109087]
[1744213302252,55.14758779,106.43,106.41,9.47659087]
[1744213302444,55.14758779,106.43,106.41,0.07109087]
[1744213302834,9.4049,106.42,106.41,0.07109087]
[1744213304056,55.14748779,106.43,106.41,9.47649087]
[1744213304551,9.46748779,106.43,106.41,9.47649087]
[1744213304755,0.06308779,106.43,106.42,9.4049]
[1744213305149,55.0619,106.46,106.43,9.4033]
[1744213305350,45.66,106.46,106.42,9.084]
[1744213305652,55.062,106.46,106.43,9.4035]
[1744213305950,45.66,106.46,106.43,9.4035]
[1744213306153,45.66,106.46,106.42,9.084]
[1744213306343,45.73133591,106.46,106.43,0.06623791]
[1744213306952,9.4032,106.44,106.43,0.06623791]
[1744213307355,33.73834859,106.44,106.39,362.0]
[1744213307547,9.4082,106.39,106.37,4.6064]
[1744213308353,9.4073,106.4,106.37,14.0158]
[1744213308547,0.06697113,106.39,106.37,14.07799287]
[1744213308856,9.47497113,106.39,106.37,14.07799287]
[1744213309357,0.06697113,106.39,106.38,9.4085]
[1744213309856,0.06697113,106.39,106.37,4.66859287]
[1744213310156,0.06697113,106.39,106.37,14.07729287]
[1744213310455,9.47467113,106.39,106.37,14.07729287]
[1744213310756,0.06697113,106.39,106.37,14.07729287]
[1744213313159,0.06697113,106.39,106.38,9.4085]
[1744213313358,45.66,106.43,106.37,29.00694146]
[1744213313861,9.4053,106.42,106.37,29.00694146]
[1744213314166,45.66,106.43,106.37,29.00694146]
[1744213314471,0.06987198,106.41,106.37,0.06219287]
[1744213314647,45.66,106.4,106.37,0.06219287]
[1744213319361,24.33834859,106.39,106.35,2.89809032]
[1744213319662,9.4103,106.36,106.35,2.89809032]
[1744213319851,55.0903,106.36,106.35,2.89809032]
[1744213321450,55.08,106.36,106.31,6.88630479]
[1744213321653,24.33834859,106.34,106.31,6.88630479]
[1744213321953,9.4138,106.32,106.31,6.88630479]
[1744213322154,9.4138,106.32,106.31,4.79e-06]
[1744213322366,24.33834859,106.32,106.3,8.245e-05]
[1744213322566,9.4147,106.31,106.3,8.245e-05]
[1744213322759,9.4147,106.31,106.3,7.421e-05]
[1744213324373,24.33834859,106.3,106.28,1.104e-05]
[1744213324564,45.68,106.29,106.28,1.104e-05]
[1744213324865,55.0965,106.29,106.28,1.104e-05]
[1744213325370,9.4173,106.28,106.27,3.73348861]
[1744213325667,33.75564859,106.28,106.27,9.526e-05]
[1744213326268,9.4173,106.28,106.27,9.526e-05]
[1744213326662,55.1173,106.28,106.27,9.526e-05]
[1744213327368,9.4173,106.28,106.27,9.526e-05]
[1744213327571,9.4169,106.29,106.27,9.526e-05]
[1744213328361,0.06781653,106.3,106.27,9.526e-05]
[1744213328362,9.4173,106.28,106.27,9.526e-05]
[1744213329074,9.4168,106.29,106.27,9.526e-05]
[1744213329369,0.06781653,106.3,106.27,9.526e-05]
[1744213330273,9.4168,106.29,106.27,9.526e-05]
[1744213330673,0.06781653,106.3,106.27,9.526e-05]
[1744213330875,9.48391653,106.3,106.27,9.41789526]
[1744213331171,0.06781653,106.3,106.27,9.41789526]
[1744213331570,0.06781653,106.3,106.27,9.526e-05]
[1744213332274,9.4173,106.28,106.27,9.526e-05]
[1744213332874,55.0173,106.28,106.27,9.526e-05]
[1744213333171,69.93834859,106.28,106.25,8.60345494]
[1744213333861,9.4191,106.26,106.25,8.60345494]
[1744213336674,9.48639195,106.27,106.25,8.60345494]
[1744213337378,9.4191,106.26,106.25,8.60345494]
[1744213337770,9.48659195,106.27,106.25,8.60345494]
[1744213338077,0.06779195,106.27,106.25,8.60345494]
[1744213338878,9.4191,106.26,106.25,8.60345494]
[1744213339680,9.48639195,106.27,106.25,8.60345494]
[1744213340379,9.4191,106.26,106.25,8.60345494]
[1744213341583,9.48649195,106.27,106.25,8.60345494]
[1744213342481,9.4191,106.26,106.25,8.60345494]
[1744213343080,9.48649195,106.27,106.25,8.60345494]
[1744213344478,9.4191,106.26,106.25,8.60345494]
[1744213344987,9.48649195,106.27,106.25,8.60345494]
[1744213345186,9.48649195,106.27,106.25,18.02325494]
[1744213345879,0.06779195,106.27,106.26,9.4191]
[1744213346287,45.6,106.28,106.25,17.58485494]
[1744213346486,45.6,106.28,106.27,9.4182]
[1744213346789,9.4162,106.3,106.25,17.58485494]
[1744213346990,770.07834859,106.34,106.29,9.4163]
[1744213347181,45.62,106.33,106.29,9.4163]
[1744213347488,9.47753205,106.33,106.31,9.4143]
[1744213347783,45.62,106.36,106.3,0.07156485]
[1744213347979,0.06083701,106.33,106.32,9.4138]
[1744213348775,45.62,106.36,106.33,9.4122]
[1744213348976,45.62,106.36,106.3,28.83754859]
[1744213349182,55.0306,106.36,106.33,9.4121]
[1744213349886,9.4112,106.35,106.33,0.06006286]
[1744213350282,9.412,106.34,106.33,0.06006286]
[1744213350590,45.68381642,106.36,106.33,0.06006286]
[1744213350889,9.4118,106.35,106.33,0.06006286]
[1744213351089,45.68381642,106.36,106.33,0.06006286]
[1744213351587,9.412,106.34,106.33,0.06006286]
[1744213357091,9.4114,106.35,106.33,0.06006286]
[1744213358290,9.4114,106.35,106.33,9.47286286]
[1744213358996,9.412,106.34,106.33,0.06006286]
[1744213359494,9.4118,106.35,106.33,0.06006286]
[1744213359796,9.4118,106.35,106.33,9.47266286]
[1744213360096,9.412,106.34,106.33,0.06006286]
[1744213360296,0.06381642,106.36,106.33,0.06006286]
[1744213360692,9.4115,106.35,106.33,0.06006286]
[1744213360998,0.06381642,106.36,106.34,9.4116]
[1744213361295,45.5,106.39,106.35,4.5527]
[1744213362393,0.06734463,106.38,106.36,0.0601236]
[1744213362786,9.4094,106.37,106.36,0.0601236]
[1744213364399,9.4094,106.37,106.36,2.36e-05]
[1744213367293,24.70642242,106.37,106.36,2.36e-05]
[1744213368499,9.4138,106.32,106.31,9.2375]
[1744213368996,9.4135,106.33,106.31,18.6522]
[1744213369597,9.47716115,106.33,106.31,18.71618892]
[1744213370399,9.4138,106.32,106.31,9.30148892]
[1744213371405,45.5,106.38,106.31,33.99851134]
[1744213371595,45.5,106.38,106.31,24.53452242]
[1744213371901,9.4115,106.35,106.33,9.4126]
[1744213372502,9.412,106.34,106.33,0.06732251]
[1744213373197,9.47397723,106.35,106.33,0.06732251]
[1744213373398,0.06237723,106.35,106.33,0.06732251]
[1744213373594,9.412,106.34,106.33,0.06732251]
[1744213373800,0.06237723,106.35,106.33,0.06732251]
[1744213374699,0.06237723,106.35,106.34,9.412]
[1744213374903,9.4099,106.37,106.33,0.06732251]
[1744213375205,45.5,106.38,106.34,9.4115]
[1744213375601,9.41,106.37,106.34,9.4115]
[1744213375789,9.41,106.37,106.35,9.4111]
[1744213375990,9.47929502,106.37,106.35,9.4111]
[1744213376495,0.06929502,106.37,106.36,9.4103]
[1744213376697,60.77702242,106.41,106.33,422.77702242]
[1744213376999,9.4083,106.39,106.36,9.4096]
[1744213377309,60.77702242,106.41,106.33,422.77702242]
[1744213377508,9.4103,106.36,106.34,9.4116]
[1744213377801,60.77702242,106.37,106.31,9.2375]
[1744213377990,9.4124,106.34,106.31,9.2375]
[1744213378197,45.48,106.36,106.31,9.2375]
[1744213378606,9.4117,106.35,106.31,9.2375]
[1744213379206,9.48031055,106.34,106.32,0.07142767]
[1744213379402,0.06831055,106.34,106.32,0.07142767]
[1744213379913,9.4129,106.33,106.32,0.07142767]
[1744213382406,9.48081055,106.34,106.32,9.48512767]
[1744213382707,0.06831055,106.34,106.32,0.07142767]
[1744213383014,45.5,106.39,106.34,9.4114]
[1744213383212,69.97922369,106.39,106.33,4.4599]
[1744213383602,9.4107,106.36,106.33,4.4599]
[1744213383902,69.97922369,106.39,106.33,4.52138059]
[1744213384102,9.47774004,106.36,106.33,13.93388059]
[1744213384302,0.06674004,106.36,106.33,13.93388059]
[1744213385313,0.06674004,106.36,106.34,9.4118]
[1744213385610,0.06674004,106.36,106.33,4.52138059]
[1744213385799,0.06674004,106.36,106.34,9.4114]
[1744213386510,0.06674004,106.36,106.35,9.4111]
[1744213388109,45.5,106.39,106.34,4.763]
[1744213388610,45.5,106.39,106.36,9.4096]
[1744213388811,45.5,106.39,106.34,4.763]
[1744213389113,0.07056693,106.38,106.35,0.06859065]
[1744213389711,0.07056693,106.38,106.37,9.4094]
[1744213390212,45.38,106.42,106.39,9.4072]
[1744213391096,9.4062,106.41,106.39,9.4072]
[1744213391305,45.38,106.42,106.38,9.408]
[1744213391611,0.03455942,106.41,106.39,0.07067189]
[1744213392304,9.44095942,106.41,106.39,9.47817189]
[1744213392509,9.44095942,106.41,106.39,0.07067189]
[1744213392813,9.44095942,106.41,106.39,9.47787189]
[1744213393314,9.4067,106.4,106.39,0.07067189]
[1744213397932,9.4,106.4,106.33,4.4599]
[1744213398108,24.47922369,106.38,106.33,4.4599]
[1744213398309,24.47922369,106.38,106.33,13.8727]
[1744213398614,9.4115,106.35,106.33,13.8727]
[1744213398913,9.4098,106.37,106.35,9.4108]
[1744213399319,9.4756466,106.37,106.35,9.47458048]
[1744213399515,9.4103,106.36,106.35,0.06378048]
[1744213402119,9.4757466,106.37,106.35,0.06378048]
[1744213402416,0.0658466,106.37,106.35,0.06378048]
[1744213402719,9.4103,106.36,106.35,0.06378048]
[1744213405513,54.7703,106.36,106.35,0.06378048]
[1744213405721,9.4129,106.33,106.31,9.4143]
[1744213405918,60.65170491,106.36,106.3,371.1076]
[1744213406222,9.4125,106.34,106.32,9.4135]